Cogmind - Beta 13 X2 @@@ ROGUE MODE // 2024.01.11 @ 14:05:53 Player: Minty Result: Destroyed by D-53 Grenadier with Mini Grenade Launcher Performance ------------- Evolutions (0) 0 Regions Visited (2) 400 Robots Destroyed (7) 35 Value Destroyed (54) 54 Prototype IDs (2) 40 Alien Tech Used (0) 0 Bonus (0) 0 TOTAL SCORE: 529 Bonus ------- None Cogmind --------- Core Integrity 0/250 Matter 290/300 Energy 123/125 System Corruption 0% Temperature Cool (0) Movement Core (50) Location -10/Mines Parts ------- > --- POWER (1) -------- Light Ion Engine > --- PROPULSION (2) --- (None) > --- UTILITY (2) ------ (None) > --- WEAPON (2) ------- (None) > --- INVENTORY (5) ---- Small Storage Unit Structural Scanner Improved Terrain Scanner Improved Terrain Scanner Tractor Beam Peak State ------------ > --- POWER ------------ Light Ion Engine > --- PROPULSION ------- Aluminum Leg Aluminum Leg > --- UTILITY ---------- Small Storage Unit Improved Terrain Scanner > --- WEAPON ----------- EM Pulse Gun Small Laser > --- INVENTORY -------- Light Ion Engine Tractor Beam Light Assault Rifle [Rating: 9] Favorites ----------- Power Light Ion Engine Engine Light Ion Engine Propulsion Aluminum Leg Leg Aluminum Leg Utility Improved Terrain Scanner Device Improved Terrain Scanner Storage Small Storage Unit Weapon Small Laser Energy Gun Small Laser Ballistic Gun Light Assault Rifle Special Weapon Mining Laser Build | -11 -10 -10 ------- Run | Yrd Mat Min Slots Evolved . | . . . Power . | . . . Propulsion . | . . . Utility . | . . . Weapon . | . . . Parts Attached 12 | 6 5 1 Power 2 | . 1 1 Engine 2 | . 1 1 Core . | . . . Reactor . | . . . Propulsion . | . . . Treads . | . . . Leg . | . . . Wheel . | . . . Hover . | . . . Flight . | . . . Utility 4 | 3 1 . Device 3 | 3 . . Storage 1 | . 1 . Processor . | . . . Hackware . | . . . Protection . | . . . Artifact . | . . . Weapon 6 | 3 3 . Energy Gun 2 | 2 . . Energy Cannon . | . . . Ballistic Gun . | . . . Ballistic Cannon . | . . . Launcher . | . . . Special Weapon 4 | 1 3 . Impact Weapon . | . . . Slashing Weapon . | . . . Piercing Weapon . | . . . Special Melee Weapon . | . . . Unidentified Prototypes . | . . . Parts Lost 10 | 3 4 3 Power 2 | 1 1 . Propulsion 2 | . . 2 Utility 2 | 1 . 1 Weapon 4 | 1 3 . Highest Loss Streak 7 | 2 4 7 To Critical Strikes . | . . . Average Slot Usage (%) 75 | . 82 28 Engine 12 | . 12 14 Leg 26 | . 28 14 Device 12 | . 14 . Storage 11 | . 13 . Energy Gun 8 | . 9 . Special Weapon 4 | . 4 . Naked Turns . | . . . Heaviest Build 12 | 12 11 10 Greatest Support 20 | 20 20 20 Greatest Overweight (x) . | . . . Average Overweight (x) . | . . . Largest Inventory Capacity 8 | 8 8 8 Average Capacity 5 | 5 7 5 Most Carried 7 | 6 7 5 Average Carried 4 | 4 5 4 Final Capacity 8 | 5 8 5 Final Carried 5 | 5 5 5 Class Distribution -------------------- 100% | Mutant Dominant Class ---------------- Mutant | -10/Materials Mutant | -10/Mines Resources | -11 -10 -10 ----------- Run | Yrd Mat Min Matter Collected 287 | 267 20 . Remotely 23 | 23 . . Salvage Created 222 | 161 61 . Parts 17 | 10 7 . Haulers Intercepted . | . . . Recyclers Shooed . | . . . Parts Field Recycled . | . . . Retrieved Matter . | . . . Parts Self-Destructed . | . . . Prevented . | . . . Kills | -11 -10 -10 ------- Run | Yrd Mat Min Combat Hostiles Destroyed 1 | 1 . . Guns 1 | 1 . . Classes Destroyed 4 | 3 1 . Builder 2 | . 2 . Tunneler 4 | 3 1 . Recycler 1 | 1 . . Assembled 1 | 1 . . Best Kill Streak 3 | 1 3 . Combat Bots Only 1 | 1 . . Max Kills in Single Turn 1 | 1 1 . Gunslinging . | . . . Exploded . | . . . Melee . | . . . Uniques/NPCs Destroyed . | . . . Combat | -11 -10 -10 -------- Run | Yrd Mat Min Hostile Shots Fired 92 | 19 55 18 Missed 34 | 4 24 6 Damage Taken 839 | 263 319 257 Core 252 | 56 47 149 Absorbed by Shields . | . . . Core Remaining (%) 77 | 77 . . Volleys Fired 40 | 26 14 . Largest 2 | 2 2 . Hottest 200 | 100 200 . Shots Fired 59 | 44 15 . Gun 50 | 37 13 . Cannon . | . . . Launcher . | . . . Special 9 | 7 2 . Kinetic 7 | 7 . . Thermal 40 | 25 15 . Explosive . | . . . Electromagnetic 12 | 12 . . Robot Hit Streak 5 | 5 5 . Robot Miss Streak 4 | 3 4 . Penetration Max . | . . . Secondary Targets . | . . . Shots Hit Robots 27 | 19 8 . Core Hits 11 | 8 3 . Critical Kills . | . . . Critical Parts Destroyed . | . . . Critical Strikes . | . . . Melee Attacks . | . . . Impact . | . . . Slashing . | . . . Piercing . | . . . Sneak Attacks . | . . . Combat Hostiles . | . . . Follow-up Attacks . | . . . Damage Inflicted 366 | 262 104 . Guns 278 | 198 80 . Cannons . | . . . Explosions 64 | 64 . . Melee . | . . . Ramming . | . . . Kinetic 33 | 33 . . Thermal 242 | 138 104 . Explosive . | . . . Electromagnetic 91 | 91 . . Impact . | . . . Slashing . | . . . Piercing . | . . . Highest Corruption . | . . . Average Corruption . | . . . Corruption Purged . | . . . Corruption Blocked . | . . . Overload Shots . | . . . Overflow Damage . | . . . Projectiles . | . . . Explosions . | . . . Melee . | . . . Knockbacks . | . . . Impact . | . . . Kinetic . | . . . Secondary . | . . . Self-Inflicted Damage 13 | 13 . . Shots 1 | 1 . . Rammed . | . . . Targets Rammed . | . . . Kicked . | . . . Crushed . | . . . Highest Temperature 125 | 54 125 . Average Temperature 25 | 19 59 . Received Heat Transfer 129 | . 129 . Siege Activations . | . . . Robots Corrupted . | . . . Combat Hostiles . | . . . Parts Fried . | . . . Impact Corruptions . | . . . Robots Melted . | . . . Combat Hostiles . | . . . Parts Melted . | . . . Heat Transferred 450 | 225 225 . Parts Sabotaged . | . . . Parts Stolen . | . . . Parts Stripped . | . . . Power Chain Reactions 2 | 2 . . Missiles Intercepted . | . . . Alert | -11 -10 -10 ------- Run | Yrd Mat Min Peak Influence 99 | 15 99 32 Initial 32 | . . 32 Average 6 | 2 43 25 Maximum Alert Level . | . . . Low Security (%) 100 | 100 100 100 Level 1 . | . . . Level 2 . | . . . Level 3 . | . . . Level 4 . | . . . Level 5 . | . . . High Security . | . . . Max Security . | . . . Squads Dispatched 1 | . 1 . Investigation 1 | . 1 . Extermination . | . . . Reinforcement . | . . . Assault . | . . . Garrison . | . . . Intercept . | . . . Searches Triggered . | . . . Construction Impeded . | . . . Haulers Reinforced . | . . . Active Scanning Responses . | . . . Cargo Convoy Interrupts . | . . . Stealth | -11 -10 -10 --------- Run | Yrd Mat Min Distress Signals 1 | . 1 . Communications Jammed . | . . . Distress Signals . | . . . Times Spotted 36 | 6 11 19 Peak Tracking Total 22 | 5 10 22 Tactical Retreats 1 | . . 1 Traps | -11 -10 -10 ------- Run | Yrd Mat Min Traps Triggered . | . . . Indirectly . | . . . Trap Hack Attempts . | . . . Triggered . | . . . Disarmed . | . . . Reprogrammed . | . . . Reused . | . . . Traps Extracted . | . . . Installed . | . . . Triggered . | . . . Machines | -11 -10 -10 ---------- Run | Yrd Mat Min Machines Disabled 1 | . 1 . Max in Single Turn 1 | . 1 . Machines Repaired . | . . . Machines Dismantled . | . . . Machines Sabotaged . | . . . Overloaded Fab Kills . | . . . Hacking | -11 -10 -10 --------- Run | Yrd Mat Min Machines Accessed 2 | . 2 . Terminals 1 | . 1 . Fabricators . | . . . Repair Stations . | . . . Recycling Units 1 | . 1 . Scanalyzers . | . . . Garrison Access . | . . . Total Hacks 6 | . 6 . Successful 5 | . 5 . Failed 1 | . 1 . Catastrophic . | . . . Database Lockouts . | . . . Manual 1 | . 1 . Terminals 4 | . 4 . Fabricators . | . . . Repair Stations . | . . . Recycling Units 2 | . 2 . Scanalyzers . | . . . Garrison Access . | . . . Terminal Hacks 3 | . 3 . Prototype ID Bank 1 | . 1 . Registered Prototypes 1 | . 1 . Zone Layout 1 | . 1 . Fabricator Hacks . | . . . Repair Station Hacks . | . . . Recycling Unit Hacks 1 | . 1 . Report Inventory 1 | . 1 . Scanalyzer . | . . . Garrison Access Hacks . | . . . Unauthorized Hacks 1 | . 1 . Terminals . | . . . Fabricators . | . . . Repair Stations . | . . . Recycling Units 1 | . 1 . Tunnel 1 | . 1 . Scanalyzers . | . . . Garrison Access . | . . . Data Cores Recovered . | . . . Used . | . . . Hacking Detections 1 | . 1 . Full Trace Events . | . . . Feedback Events . | . . . Feedback Blocked . | . . . Robot Schematics Acquired . | . . . Robots Built . | . . . Authchips . | . . . Time . | . . . Total Robot Build Rating . | . . . Part Schematics Acquired . | . . . Parts Built . | . . . Authchips . | . . . Time . | . . . Total Part Build Rating . | . . . Parts Repaired . | . . . Time . | . . . Parts Recycled . | . . . Recycled Matter . | . . . Retrieved Matter . | . . . Retrieved Components . | . . . Parts Scanalyzed . | . . . Part Schematics Acquired . | . . . Parts Damaged . | . . . Bothacking | -11 -10 -10 ------------ Run | Yrd Mat Min Used RIF Installer . | . . . Robots Hacked . | . . . Non-combat . | . . . Combat . | . . . Robot Hacks Applied . | . . . Relay Couplers Released . | . . . Fabnet Peak Effective % . | . . . Robots Rewired . | . . . Allies Hacked . | . . . Hacks Repelled . | . . . Allies | -11 -10 -10 -------- Run | Yrd Mat Min Total Allies . | . . . Largest Group . | . . . Highest-Rated Group . | . . . Highest-Rated Ally . | . . . Total Orders . | . . . Ally Attacks . | . . . Total Damage . | . . . Kills . | . . . Allies Corrupted . | . . . Allies Melted . | . . . Intel | -11 -10 -10 ------- Run | Yrd Mat Min Robot Analysis Total . | . . . Derelict Logs Recovered . | . . . Drone Launches . | . . . Drone Recoveries . | . . . Exploration | -11 -10 -10 ------------- Run | Yrd Mat Min Turns Passed 1821 | 1658 142 21 Spaces Moved 652 | 535 84 33 Core 62 | 31 2 29 Treads . | . . . Legs 590 | 504 82 4 Wheels . | . . . Hover . | . . . Flight . | . . . Fastest Speed 50 | 50 50 50 Average Speed 113 | 115 118 58 Slowest Speed 120 | 120 120 120 Overloaded Moves . | . . . Propulsion Burnouts . | . . . Robots Hopped . | . . . Cave-ins Triggered . | . . . Exploration Rate (%) 25 | 37 23 17 Regions Visited 2 Branch Regions 1 Pre-discovered Areas 1 | . 1 . Known Exits Taken . | . . . Unknown Exits Taken 2 | 1 1 . Scrap Searched . | . . . Spaces Dug 1 | 1 . . Terrain Destroyed 3 | 3 . . Melee . | . . . Projectile 1 | 1 . . AOE 2 | 2 . . Terrain Rammed . | . . . Walls Destroyed . | . . . Machines Disabled . | . . . Actions | -11 -10 -10 --------- Run | Yrd Mat Min Total 1658 | 1515 107 36 Wait 941 | 940 1 . Move 650 | 534 83 33 Hop . | . . . Pick Up 7 | 3 4 . Fast Attach 3 | 2 1 . Attach 5 | . 4 1 Detach 2 | 1 . 1 Swap 4 | 4 . . Drop 6 | 5 . 1 Fire 40 | 26 14 . Melee . | . . . Ram . | . . . Kick . | . . . Crush . | . . . Escape Stasis . | . . . Rewire . | . . . Trap . | . . . Miscellaneous . | . . . Route ------- -11/Scrapyard -10/Materials -10/Mines History --------- Turn | Location | Event 1 | -11/Scrapyard | Discovered new exit (range 3) 1536 | -11/Scrapyard | Assembled infested the area 1659 | -11/Scrapyard | Entered Materials 1660 | -10/Materials | Build established: Mutant 1779 | -10/Materials | Discovered new exit (range 15) 1801 | -10/Materials | Entered Mines 1802 | -10/Mines | Assembled infested the area 1807 | -10/Mines | Assisted by a Guerilla fighting off Assembled 1814 | -10/Mines | Core integrity fell below 50% 1822 | -10/Mines | Destroyed by D-53 Grenadier with Mini Grenade Launcher Last Messages --------------- 01802_ ALERT: Infestation in the mines, dispatching Demolisher response squad. 01804_ T-07 Excavator destroyed. 01805_ DP-RC0(h): "I'll hold them off! Go on ahead or try to find another way!" 01805_ HV Slug penetrates Wall. 01806_ Imp. Terrain Scanner destroyed. 01806_ HV Slug penetrates Wall. 01807_ A derelict emerges from the shadows: "You need to get out of here! I've been tracking a group of Assembled to figure out where they're coming from, and they're closing on this area, come on!" 01808_ DP-RC0(h) shuts down. 01808_ Aluminum Leg destroyed. 01808_ Dropped Mining Laser. 01809_ as-71205 sneak attacks. 01817_ S-10 Pest destroyed. 01817_ as-11361 destroyed. 01820_ C-30 ARC bursts open, deploying its payload. 01820_ D-53 Grenadier unfolds itself. 01822_ Aluminum Leg destroyed. Map ----- +----------------------------------------------------+ | | | | | | | | | | | | | | | | | | | ?????????????????????????????????????????????????? | | ?????????????????????????????????????????????????? | | ?????????????????????????????????????????????????? | | ?????????????????????????????????????????????????? | | ?????????????????????????????###?????????????????? | | ????????????????????????????# ##????????????????? | | ??????????????????????????## #????????????????? | | ?????????????????????????# ?????????????????? | | ???????????????##??????## #?????????????????? | | ??????????????##t ###?## #?????????????????? | | ??????????????# ## ??????????????????? | | ??????????????? ???????????????????? | | ????????????????? #???????????????????? | | ??????????????????? ##??????????????????? | | ????????????????????? #??????????????????? | | ??????????????????????# #???????????????????? | | ???????????????????????# @%d ##??????????????????? | | ??????????????????????# d #??????????????????? | | ???????????????????#### #??????????????????? | | ??????????????????## ## #??????????????????? | | ?????????????????## ## #??????????????????? | | ????????????????## ### ##??????????????????? | | ?????????####??## ### #???????????????????? | | ????????## #### ###t #???????????????????? | | ??????### ## #?# ##???????????????????? | | ?????## ### #????????????????????? | | ?????# % #????????????????????? | | ?????# #????????????????????? | | ?????# % #######????????????????????? | | ?????## ##### ##??????????????????????????? | | ??????##### #???## ##???????????????????????????? | | ??????????# #????####????????????????????????????? | | ?????????## #????????????????????????????????????? | | ?????##### |##???????????????????????????????????? | | ????## |% #???????????????????????????????????? | | ????# ! #???????????????????????????????????? | | ????# #???????????????????????????????????? | | ?# ## #???????????????????????????????????? | | # ??## ##???????????????????????????????????? | | # ?????### ##????????????????????????????????????? | | ?????????# #?????????????????????????????????????? | +----------------------------------------------------+ Best States ------------- Heat Dissipation 25 Energy Generation 10 Energy Capacity 125 Matter Stores 300 Matter Capacity 300 Sight Range 16 Terrain Scan Range 16 Terrain Scan Density 10 Evasion (%) 55 Item Schematics ----------------- None Robot Schematics ------------------ None Fabricated ------------ Nothing Alien Tech Used ----------------- None Achievements -------------- None Challenges ------------ None Game ------ Seed ShadeInsulatedShotgun Manual? 0 Play Time 00:06:37 Cumulative 582.7 hours Start 2024.01.11 @ 13:59:14 End 2024.01.11 @ 14:05:53 Sessions 1 Manual Loads 0 Difficulty Rogue Special Mode None Game No. 496 Rogue 223 Adventurer 123 Explorer 150 Win Type - Total 25 Types 19/0/4/1/0/0/0/1/0 Lore% 78 Gallery% 90 Achievement% 75 Wizard Run 0 Options --------- ASCII 0 Keyboard 1 Movement Numpad Keybinds 0 Fullscreen 2 Font 18/X11Bold Map View 76x50 Zoom Use 0% Tactical HUD 1 Map Filters NONE Filters NONE Steam 1 RUN: a101a2dc-7fa7-4a82-ad97-84fb23b4a2fc